{"text_format":"1","workbook":"xlsx","n_sheets":4,"sheets":["Hoja6","DASBOARD","REPORTE","FUENTES"],"not_rendered":{"charts":6,"images":7,"macros":1,"external_links":0,"defined_names":2,"comments":0,"pivot_tables":6},"unopened":[],"bounds":{"document_bytes":16777216,"sheet_cells":100000,"rows_first":2000,"rows_last":500,"rows_between":2000,"halvings":0,"cell_chars":16384,"cell_head_chars":4096},"cells_cut":0,"cells_raw":0,"read":"whole","date_system":"1900"}

{"sheet":"Hoja6","index":0,"n_rows":24,"n_cols":17,"rows_kept":24,"cut":false,"hidden":false,"merged":[]}
[]
[]
[null,"Etiquetas de columna",null,"Etiquetas de fila","Suma de No. SEGUIMIENTOS REALIZADOS",null,"Etiquetas de fila","1 SEGUIMIENTO","2 SEGUIMIENTO ","3 SEGUIMIENTO ","4 SEGUIMIENTO ","5 SEGUIMIENTO ","6 SEGUIMIENTO","7 SEGUIMIENTO","8 SEGUIMIENTO","9 SEGUIMIENTO","10 SEGUIMIENTO"]
["Valores","PM DIALOGANDO CON EL MUNDO ","Total general","PM DIALOGANDO CON EL MUNDO ",2,null,"PM DIALOGANDO CON EL MUNDO ",0.126,0.37]
["Avance",0.37,0.37,"Total general",2,null,"Total general",0.126,0.37]
["En proceso",0.63,0.63]
["No. DE PLANES DE MEJORAMIENTO",{"$f":"+COUNT(REPORTE!D7:D39)","v":33}]
[]
[]
[]
[]
[]
[]
[]
[]
[0.2,1]
[0.3,1,null,null,"Etiquetas de fila","Cuenta de PRIMER SEGUIMIENTO",null,"Etiquetas de fila","Cuenta de PRIMER SEGUIMIENTO"]
[0.4,1,null,null,"PM DIALOGANDO CON EL MUNDO ",1,null,2021,1]
[0.5,1,null,null,"El plan de mejoramiento tiene un termino de ejecución hasta el mes de septiembre del 2021.\n",1,null,"Total general",1]
[0.6,1,null,null,"Total general",1]
[0.7,1]
[0.8,1,null,null,"OBSERVACIONES","Cuenta de PRIMER SEGUIMIENTO"]
[0.9,1,null,null," Actualmente el PM cuenta con un avance de 37%, donde se presenta un avance general de cada una de las 19 actividades , se presenta un avance significativo en las 12 actividades , las demás actividades se encuentran en ejecución.",1]
[1,8,null,null,"Total general",1]

{"sheet":"DASBOARD","index":1,"n_rows":0,"n_cols":0,"rows_kept":0,"cut":false,"hidden":false,"merged":[]}

{"sheet":"REPORTE","index":2,"n_rows":40,"n_cols":19,"rows_kept":40,"cut":false,"hidden":false,"merged":[[4,1,4,18]]}
[]
[]
[]
[]
[]
[null,"PLANES DE MEJORAMIENTO","LINK DE ACCESO ONEDRIVE","No. SEGUIMIENTOS REALIZADOS","ESTADO DE AVANCE ACTUAL","PENDIENTE","PRIMER SEGUIMIENTO","SEGUNDO SEGUIMIENTO","TERCER SEGUIMIENTO","CUARTO SEGUIMIENTO","QUINTO SEGUIMIENTO","SEXTO SEGUIMIENTO","SEPTIMO SEGUIMIENTO","OCTAVO SEGUIMIENTO","NOVENO SEGUIMIENTO","DECIMO SEGUIMIENTO","VIGENCIA","OBSERVACIONES ","FECHA DE VENCIMIENTO "]
[null,"PLAN ANUAL DE ADQUISICIONES",null,{"$f":"+COUNT(G7:O7)","v":2},{"$f":"+MAX($G$7:$P$7)","v":0.9},{"$f":"100%-E7","v":9.9999999999999978E-2},0.61,0.9,null,null,null,null,null,null,null,null,2022,"Con corte a 31 de marzo 2022:  44 Lineas Proyectadas, 27 Lineas iniciadas/implementadas, 17 Lineas pendientes de iniciar.\nCon corte a 30 de Junio 2022:  39 Lineas Proyectadas, 35 Lineas iniciadas/implementadas, 4 Lineas pendientes de iniciar.\n","PAA VIGENCIA 2022"]
[null,"PM  DE DIAGNOSTICO ACADEMICO - OF GRADUADOS",null,2,{"$f":"+MAX($G$8:$P$8)","v":0.25},{"$f":"100%-E8","v":0.75},0.13750000000000001,0.25,null,null,null,null,null,null,null,null,2022,"Seguimiento con corte a Junio  del 2022. Las actividades del presente plan de mejoramiento se encuentran contempladas hasta el 15 de diciembre del 2022, así las cosas, se encuentra dentro de los términos de ejecución.","La fecha de vencimiento del presente plan es el dia 15-12-2022"]
[null,"PM INCLUSIÓN",null,3,{"$f":"+MAX($G$9:$P$9)","v":0.74},0.26,0.68,0.74,0.74,null,null,null,null,null,null,null,2016,"En seguimiento a este plan se evidencia que el anterior seguimiento tuvo un alcance del 74%, (25 ACTIVIDADES) se realizó mesa de trabajo con planeación y equidad y diversidad donde se presentaron evidencias.","Vigencia 2020"]
[null,"PM ACCESIBILIDAD-INFRAESTRUCTURA",null,1,{"$f":"+MAX($G$10:$P$10)","v":0},{"$f":"100%-E10","v":1},"0'%",0,null,null,null,null,null,null,null,null,2021,"EEn seguimiento a este plan de mejoramiento se realizó mesa de trabajo con la oficina de planeación y equidad y diversidad para dar orientación sobre metodología para crear el plan hasta el momento no se ha obtenido como tal el plan de mejoramiento para este plan.","Vigencia 2021"]
[null,"PM ACCESIBILIDAD WEB",null,2,{"$f":"+MAX($G$11:$P$11)","v":0.5},0.5,0.33,0.5,null,null,null,null,null,null,null,null,2022,"El ultimo seguimiento se realizó con corte a 30 de Junio del año 2022","El plan de mejoramiento tiene un término de ejecución hasta el 30 nov 2022. "]
[null,"PM REACREDITACIÓN LIC. CIENCIAS SOCIALES",null,6,{"$f":"+MAX(G12:P12)","v":0.76},{"$f":"100%-E12","v":0.24},0.15,0.21,0.32,0.35,0.53,0.76,null,null,null,null,"2020-2022","El sexto  seguimiento se realizó con corte a 10 de Junio  del 2022. El plan de mejoramiento contempla 22 actividades de las cuales 8 se encuentran cerradas, 5 actividades vencidas en ejecución y 9 actividades en términos.","El plan de mejoramiento tiene un término de ejecución, desde el 2020 hasta el 2022. "]
[null,"PM DIALOGANDO CON EL MUNDO ",null,2,0.37,0.63,0.126,0.37,null,null,null,null,null,null,null,null,2021," Actualmente el PM cuenta con un avance de 37%, donde se presenta un avance general de cada una de las 19 actividades , se presenta un avance significativo en las 12 actividades , las demás actividades se encuentran en ejecución.","El plan de mejoramiento tiene un termino de ejecución hasta el mes de septiembre del 2021.\n"]
[null,"PM CONTRALORIA VIG 2020",null,{"$f":"+COUNT(G14:H14)","v":2},0.46,{"$f":"100%-E14","v":0.54},0.33,0.35,0.46,null,null,null,null,null,null,null,"2021-2022","El P.M. cuenta con 80 Actividades;  43 de ellas se encuentran abiertas equivalentes al  54% del plan de mejoramiento y 37  cerradas.\nDe las 43 actividades abiertas  se encuentran vencidas 19 (Cumpl. parcial), en terminos  19 y 5 vencidas (No Cumple)","El Plan de Mejoramiento tiene un termino de ejecución hasta agosto del 2022\n"]
[null,"PM CONDICIONES INICIALES",null,{"$f":"+COUNT(G15:P15)","v":10},0.98,2.0000000000000018E-2,0.23,0.49,0.72,0.81,0.86,0.87,0.87,0.91,0.91,0.98,2019,"Actualmente el PM cuenta con un avance de 98%, 7 puntos por encima del último seguimiento llevado a cabo en el mes de marzo del 2022. En el presente seguimiento se cierran 6 actividades.","31/12/2021. (Aún se cuenta con actividades que requieren monitoreo)."]
[null,"PM TRANSPARENCIA VIG 2020",null,5,0.93,{"$f":"100%-E16","v":6.9999999999999951E-2},0.43,0.8,0.9,0.9,0.93,null,null,null,null,null,2021,"Con corte a 30 de junio, el PM cuenta con un avance de 93%, tres puntos por encima del último seguimiento, aún se evidencian actividades abiertas, las cuales que se encuentran sujetas a cronogramas internos y a la articulación con externos","Vigencia 2021"]
[null,"PM FURAG - PLANEACIÓN",null,7,0.96,4.0000000000000036E-2,0.14000000000000001,0.45,0.56999999999999995,0.63,0.71,0.95,0.96,null,null,null,2020,"Las acciones pendientes por cumplir se articularan las los planes de trabajo de la implementación de las políticas del Modelo Integrado de Planeación y Gestión (MIPG).","Seguimiento con corte a 30 de Junio del 2022"]
[null,"PM FURAG - SISTEMAS Y TECNOLOGIA",null,7,0.28999999999999998,0.71,7.0000000000000007E-2,0.17,0.17,0.17,0.17,0.28999999999999998,0.28999999999999998,null,null,null,"2020-2021","Las acciones pendientes por cumplir se articularan las los planes de trabajo de la implementación de las políticas del Modelo Integrado de Planeación y Gestión (MIPG).","Seguimiento con corte a 30 de Junio del 2022"]
[null,"PM FURAG - CONTROL INTERNO",null,6,0.95,5.0000000000000044E-2,0.62,0.64,0.73,0.74,0.85,0.95,null,null,null,null,"2019-2020","Las acciones pendientes por cumplir se articularan las los planes de trabajo de la implementación de las políticas del Modelo Integrado de Planeación y Gestión (MIPG).","Seguimiento con corte a 30 de Junio del 2022"]
[null,"PM FURAG - SERVICIO DE ATENCIÓN AL CIUDADANO",null,7,0.67,0.32999999999999996,0.43,0.56999999999999995,0.62,0.62,0.67,0.67,0.67,null,null,null,"2019-2020","Las acciones pendientes por cumplir se articularan las los planes de trabajo de la implementación de las políticas del Modelo Integrado de Planeación y Gestión (MIPG).","Seguimiento con corte a 30 de Junio del 2022"]
[null,"PM FURAG - COMUNICACIONES",null,7,0.88,0.12,0.57999999999999996,0.63,0.79,0.79,0.79,0.83,0.88,null,null,null,2020,"Las acciones pendientes por cumplir se articularan las los planes de trabajo de la implementación de las políticas del Modelo Integrado de Planeación y Gestión (MIPG).","Seguimiento con corte a 30 de Junio del 2022"]
[null,"PM FURAG - ARCHIVO Y CORRESPONDENCIA",null,7,0.96,4.0000000000000036E-2,0.75,0.92,0.96,0.96,0.96,0.96,0.96,null,null,null,"2019-2020","Las acciones pendientes por cumplir se articularan las los planes de trabajo de la implementación de las políticas del Modelo Integrado de Planeación y Gestión (MIPG).","Seguimiento con corte a 30 de Junio del 2022"]
[null,"PM CONDICIONES INSTITUCIONALES",null,9,0.85699999999999998,0.14300000000000002,0.32700000000000001,0.45,0.68700000000000006,0.69099999999999995,0.81,0.85,0.85,0.85699999999999998,0.85699999999999998,null,2019,"Noveno seguimiento con corte a Junio2022, no se genera avance desde el último seguimiento.","El plan de actividades cuenta con 20 acciones a implementar durante la vigencia 2019, para lo cual quedan pendientes 5 acciones y garantizar el cumplimiento al 100%."]
[null,"PM OMIS - SECCIONAL UBATÉ",null,6,0.88,0.12,0.33,0.71,0.88,0.88,0.88,0.88,null,null,null,null,2020,"En seguimiento a las actividades con corte a 30 de Junio  del año 2022  se evidencia que\nsiguen pendientes dos (2) actividades","Las actividades propuestos dentro del plan de mejoramiento, tienen como fecha límite de cumplimiento, el 31 diciembre de 2020"]
[null,"PM LEY DE PROTECCIÓN DE DATOS ",null,6,0.66,0.33999999999999997,0.1,0.45,0.45,0.55000000000000004,0.64,0.66,null,null,null,null,2021,"Seguimiento con corte a junio del 2022. Puntos por resaltar la ejecución de la auditoría interna realizada al sistema de gestión de seguridad de la información.","vigencia 2021"]
[null,"PM SG-SST",null,5,0.94,6.0000000000000053E-2,0.28000000000000003,0.5,0.69,0.83,0.94,null,null,null,null,null,2022,"En seguimiento a este plan de mejoramiento se evidencia un informe anterior en un 83% el cual se pudo lograr un avance gracias a los procesos involucrados y responsables descritas en este plan de mejoramiento. ","Vigencia 2022"]
[null,"POLITICA DE TALENTO HUMANO ",null,4,0.25,{"$f":"100%-E27","v":0.75},0,0.1,0.25,0.25,null,null,null,null,null,null,2021,"Se realiza segundo seguimiento con corte a octubre del 2021.\nSe realiza tercer seguimiento con corte a marzo del año 2022.\nSe realiza cuarto seguimiento con corte a Junio del año 2022.","Vigencia 2021"]
[null,"POLITICA DE GESTIÓN DEL CONOCIMIENTO",null,4,0.15,{"$f":"100%-E28","v":0.85},0.04,0.06,0.06,0.15,null,null,null,null,null,null,2021,"Se realiza segundo seguimiento con corte a octubre del 2021.\nSe realiza tercer seguimiento con corte a marzo del año 2022.\nSe realiza cuarto seguimiento con corte a Junio del año 2022.","Vigencia 2021"]
[null,"POLITICA DE PLANEACIÓN",null,4,0.57999999999999996,{"$f":"100%-E29","v":0.42000000000000004},0.17,0.5,0.57999999999999996,0.57999999999999996,null,null,null,null,null,null,2021,"Se realiza segundo seguimiento con corte a octubre del 2021.\nSe realiza tercer seguimiento con corte a marzo del año 2022.\nSe realiza cuarto seguimiento con corte a Junio del año 2022.","Vigencia 2021"]
[null,"POLITICA DE DEFENSA JURIDICA",null,4,0.32,{"$f":"100%-E30","v":0.67999999999999994},0,0,0.25,0.32,null,null,null,null,null,null,2020,"Se realiza segundo seguimiento con corte a octubre del 2021.\nSe realiza tercer seguimiento con corte a marzo del año 2022.\nSe realiza cuarto seguimiento con corte a Junio del año 2022.","Vigencia 2020"]
[null,"POLITICA DE CONTROL INTERNO",null,6,0.71,0.29000000000000004,0.1,0.22,0.28999999999999998,0.53,0.64,0.71,null,null,null,null,2022,"Se realiza segundo seguimiento con corte a octubre del 2021.\nSe realiza tercer seguimiento con corte a marzo del año 2022.\nSe realiza cuarto seguimiento con corte a Junio del año 2022.","Vigencia 2022"]
[null,"POLITICA DE FORTALECIMIENTO ORGANIZACIONAL ",null,5,0.38,{"$f":"100%-E32","v":0.62},0.19,0.24,0.33,0.33,0.38,null,null,null,null,null,2023,"Se realiza segundo seguimiento con corte a octubre del 2021.\nSe realiza tercer seguimiento con corte a marzo del año 2022.\nSe realiza cuarto seguimiento con corte a Junio del año 2022.","Vigencia 2023"]
[null,"POLITICA DE GOBIERNO DIGITAL",null,5,0.23,0.77,0.09,0.1,0.1,0.23,0.23,null,null,null,null,null,2021,"Se realiza segundo seguimiento con corte a octubre del 2021.\nSe realiza tercer seguimiento con corte a marzo del año 2022.\nSe realiza cuarto seguimiento con corte a Junio del año 2022.","Vigencia 2021"]
[null,"POLITICA DE SEGURIDAD DIGITAL ",null,{"$f":"+COUNT(G34:O34)","v":5},7.0000000000000007E-2,0.92999999999999994,7.0000000000000007E-2,7.0000000000000007E-2,7.0000000000000007E-2,7.0000000000000007E-2,7.0000000000000007E-2,null,null,null,null,null,2021,"Se realiza segundo seguimiento con corte a octubre del 2021.\nSe realiza tercer seguimiento con corte a marzo del año 2022.\nSe realiza cuarto seguimiento con corte a Junio del año 2022.","Vigencia 2021"]
[null,"POLITICA DE PARTICIPACIÓN CIUDADANA",null,5,0.67,0.32999999999999996,7.0000000000000007E-2,0.26,0.33,0.59,0.67,null,null,null,null,null,2021,"Se realiza segundo seguimiento con corte a octubre del 2021.\nSe realiza tercer seguimiento con corte a marzo del año 2022.\nSe realiza cuarto seguimiento con corte a Junio del año 2022.","Vigencia 2021"]
[null,"POLITICA DE SEGUIMIENTO Y EVALUACIÓN",null,5,0.67,0.32999999999999996,0.11,0.33,0.33,0.44,0.67,null,null,null,null,null,2021,"Se realiza segundo seguimiento con corte a octubre del 2021.\nSe realiza tercer seguimiento con corte a marzo del año 2022.\nSe realiza cuarto seguimiento con corte a Junio del año 2022.","Vigencia 2021"]
[null,"POLITICA DE TRANSPARENCIA",null,4,0.56000000000000005,0.43999999999999995,0.11,0.11,0.22,0.56000000000000005,null,null,null,null,null,null,2021,"Se realiza segundo seguimiento con corte a octubre del 2021.\nSe realiza tercer seguimiento con corte a marzo del año 2022.\nSe realiza cuarto seguimiento con corte a Junio del año 2022.","Vigencia 2021"]
[null,"POLITICA DOCUMENTAL",null,5,0.33,0.66999999999999993,0.17,0.17,0.17,0.33,0.33,null,null,null,null,null,2021,"Se realiza segundo seguimiento con corte a octubre del 2021.\nSe realiza tercer seguimiento con corte a marzo del año 2022.\nSe realiza cuarto seguimiento con corte a Junio del año 2022.","Vigencia 2021"]
[null,"POLITICA DEL SISTEMA DE ATENCIÓN AL CIUDADANO",null,{"$f":"+COUNT(G39:O39)","v":6},0.61,0.39,0.06,0.19,0.22,0.28000000000000003,0.5,0.61,null,null,null,null,2021,"Se realiza segundo seguimiento con corte a octubre del 2021.\nSe realiza tercer seguimiento con corte a marzo del año 2022.\nSe realiza cuarto seguimiento con corte a Junio del año 2022.","Vigencia 2021"]
[null,null,null,null,null,{"$f":"+(MAX(#REF!)+MAX(G12:K12)+MAX(G13:K13)+MAX(G15:K15)+MAX(#REF!)+MAX(G17:K17)+MAX(G18:K18)+MAX(G19:K19)+MAX(G20:K20)+MAX(G21:K21)+MAX(G22:K22)+MAX(G23:K23)+MAX(G24:K24)+MAX(#REF!)+MAX(#REF!)+MAX(#REF!)+MAX(#REF!)+MAX(#REF!)+MAX(#REF!)+MAX(#REF!)+MAX(#REF!)+MAX(#REF!)+MAX(#REF!)+MAX(#REF!)+MAX(#REF!)+MAX(#REF!)+MAX(#REF!))/COUNT(D7:D39)","v":{"$error":"#REF!"}},{"$f":"100%-F40","v":{"$error":"#REF!"}}]

{"sheet":"FUENTES","index":3,"n_rows":31,"n_cols":8,"rows_kept":31,"cut":false,"hidden":false,"merged":[[2,3,2,7]]}
[]
[]
[null,null,null,"FECHAS DE SEGUIMIENTO "]
[null,"PLANES DE MEJORAMIENTO","LINK DE ACCESO ONEDRIVE","PRIMER SEGUIMIENTO","SEGUNDO SEGUIMIENTO","TERCER SEGUIMIENTO","CUARTO SEGUIMIENTO","QUINTO SEGUIMIENTO"]
[null,"PM SISTEMA DE GESTIÓN AMBIENTAL",{"$f":"+COUNT(D5:H5)","v":0}]
[null,"PM REACREDITACIÓN SOCIALES",{"$f":"+COUNT(D6:H6)","v":0}]
[null,"PM CONTRALORIA",0]
[null,"PM CONDICIONES INCIALES",0]
[null,"PM BRECHAS TRANSPARENCIA",0]
[null,"PM FURAG - PLANEACIÓN",0]
[null,"PM FURAG - SISTEMAS Y TECNOLOGIA",0]
[null,"PM FURAG - CONTROL INTERNO",0]
[null,"PM FURAG - SERVICIO DE ATENCIÓN AL CIUDADANO",0]
[null,"PM FURAG - COMUNICACIONES",0]
[null,"PM FURAG - ARCHIVO Y CORRESPONDENCIA",0]
[null,"PM CONDICIONES INSTITUCIONALES",0]
[null,"PM OMIS - SECCIONAL UBATÉ",0]
[null,"PM OMIS - SECCIONAL GIRARDOT",0]
[null,"PM OMIS - EXTENSIÓN ZIPAQUIRA",0]
[null,"PM OMIS - EXTENSIÓN SOACHA",0]
[null,"PM OMIS -  EXTENSIÓN FACATATIVA",0]
[null,"PM OMIS - EXTENSIÓN CHÍA",0]
[null,"PM SABER PRO - ADMON EMPRESAS FGGA",0]
[null,"PM SABER PRO - ENFERMERIA GDTO",0]
[null,"PM SABER PRO -  MUSICA ZIPA",0]
[null,"PM SABER PRO - LIC CIENCIAS DEL DEPORTE FGGA",0]
[null,"PM SABER PRO - ZOOTECNIA FGGA",0]
[null,"PM SABER PRO - ING ELECTRONICA FGGA",0]
[null,"PM SABER PRO - LIC CIENCIAS SOCIALES FGGA",0]
[null,"PM LEY ANTISOBORNO",0]
[null,"CITGO DIGITAL",0]